[Event "Elite Hotels Open 2024"]
[Site "Elite Stadshotellet, Kungsgatan 6, Vaxjo, Sweden"]
[Date "2024.02.09"]
[Round "3.9"]
[White "Mashhadi, Peyman"]
[Black "Lindberg, Bengt"]
[Result "1/2-1/2"]
[TimeControl "15 minutes + 5 seconds per move from move one (Round 1 - 4) / 90 minutes + 30 seconds per move from move one (Round 5 - 8)"]
[BlackTitle "IM"]
[WhiteFideId "1768581"]
[BlackFideId "1700359"]
[WhiteElo "2073"]
[BlackElo "2331"]

1. Nf3 {[%clk 00:15:04]} {[%emt 00:00:04]} Nf6 {[%clk 00:15:07]} {[%emt
00:00:03]} 2. d4 {[%clk 00:15:08]} {[%emt 00:00:02]} e6 {[%clk 00:15:10]}
{[%emt 00:00:03]} 3. c4 {[%clk 00:15:10]} {[%emt 00:00:03]} b6 {[%clk
00:14:59]} {[%emt 00:00:16]} 4. g3 {[%clk 00:15:10]} {[%emt 00:00:05]} Ba6
{[%clk 00:14:59]} {[%emt 00:00:05]} 5. Qc2 {[%clk 00:14:43]} {[%emt 00:00:32]}
Bb4+ {[%clk 00:14:56]} {[%emt 00:00:08]} 6. Nbd2 {[%clk 00:14:15]} {[%emt
00:00:33]} Bb7 {[%clk 00:14:32]} {[%emt 00:00:29]} 7. Bg2 {[%clk 00:13:30]}
{[%emt 00:00:50]} Be4 {[%clk 00:14:10]} {[%emt 00:00:26]} 8. Qb3 {[%clk
00:12:54]} {[%emt 00:00:41]} Nc6 {[%clk 00:12:33]} {[%emt 00:01:41]} 9. O-O
{[%clk 00:12:12]} {[%emt 00:00:47]} Bxd2 {[%clk 00:12:32]} {[%emt 00:00:06]} 10.
Bxd2 {[%clk 00:11:48]} {[%emt 00:00:30]} O-O {[%clk 00:12:14]} {[%emt
00:00:23]} 11. Bc3 {[%clk 00:11:24]} {[%emt 00:00:29]} a5 {[%clk 00:10:31]}
{[%emt 00:01:47]} 12. a3 {[%clk 00:10:06]} {[%emt 00:01:23]} d5 {[%clk
00:09:12]} {[%emt 00:01:23]} 13. Nd2 {[%clk 00:07:53]} {[%emt 00:02:19]} Bxg2
{[%clk 00:09:12]} {[%emt 00:00:05]} 14. Kxg2 {[%clk 00:07:56]} {[%emt
00:00:02]} dxc4 {[%clk 00:08:13]} {[%emt 00:01:04]} 15. Qxc4 {[%clk 00:07:57]}
{[%emt 00:00:04]} Qd5+ {[%clk 00:08:05]} {[%emt 00:00:13]} 16. Qxd5 {[%clk
00:07:53]} {[%emt 00:00:09]} exd5 {[%clk 00:08:03]} {[%emt 00:00:06]} 17. e3
{[%clk 00:06:59]} {[%emt 00:01:00]} Rfe8 {[%clk 00:07:29]} {[%emt 00:00:38]} 18.
Rac1 {[%clk 00:06:40]} {[%emt 00:00:24]} Na7 {[%clk 00:06:56]} {[%emt
00:00:38]} 19. b3 {[%clk 00:06:30]} {[%emt 00:00:16]} Rac8 {[%clk 00:05:57]}
{[%emt 00:01:03]} 20. Bb2 {[%clk 00:06:20]} {[%emt 00:00:15]} Ne4 {[%clk
00:05:27]} {[%emt 00:00:35]} 21. Nxe4 {[%clk 00:06:02]} {[%emt 00:00:22]} Rxe4
{[%clk 00:05:26]} {[%emt 00:00:06]} 22. Rc2 {[%clk 00:05:55]} {[%emt 00:00:13]}
f6 {[%clk 00:05:18]} {[%emt 00:00:12]} 23. Rfc1 {[%clk 00:05:46]} {[%emt
00:00:14]} c6 {[%clk 00:05:19]} {[%emt 00:00:04]} 24. a4 {[%clk 00:05:11]}
{[%emt 00:00:41]} Kf7 {[%clk 00:05:21]} {[%emt 00:00:02]} 25. Kf3 {[%clk
00:04:31]} {[%emt 00:00:46]} Ke8 {[%clk 00:05:22]} {[%emt 00:00:03]} 26. Ke2
{[%clk 00:04:30]} {[%emt 00:00:07]} Kd7 {[%clk 00:05:19]} {[%emt 00:00:07]} 27.
Kd3 {[%clk 00:04:32]} {[%emt 00:00:04]} f5 {[%clk 00:04:57]} {[%emt 00:00:27]}
28. Ba3 {[%clk 00:04:06]} {[%emt 00:00:32]} Re6 {[%clk 00:04:51]} {[%emt
00:00:10]} 29. h4 {[%clk 00:03:27]} {[%emt 00:00:44]} Ra8 {[%clk 00:04:29]}
{[%emt 00:00:26]} 30. Rg1 {[%clk 00:02:59]} {[%emt 00:00:33]} h5 {[%clk
00:04:05]} {[%emt 00:00:29]} 31. Rb1 {[%clk 00:02:49]} {[%emt 00:00:16]} Nc8
{[%clk 00:03:53]} {[%emt 00:00:17]} 32. Rbc1 {[%clk 00:02:43]} {[%emt
00:00:11]} Rb8 {[%clk 00:03:47]} {[%emt 00:00:10]} 33. Bf8 {[%clk 00:02:22]}
{[%emt 00:00:28]} Rg6 {[%clk 00:03:17]} {[%emt 00:00:34]} 34. Ke2 {[%clk
00:01:37]} {[%emt 00:00:50]} Na7 {[%clk 00:03:02]} {[%emt 00:00:20]} 35. Ba3
{[%clk 00:01:33]} {[%emt 00:00:09]} Rb7 {[%clk 00:02:48]} {[%emt 00:00:19]} 36.
Kf3 {[%clk 00:01:32]} {[%emt 00:00:06]} Rg4 {[%clk 00:02:49]} {[%emt 00:00:04]}
37. Bf8 {[%clk 00:01:19]} {[%emt 00:00:19]} Rb8 {[%clk 00:02:46]} {[%emt
00:00:08]} 38. Ba3 {[%clk 00:01:22]} {[%emt 00:00:02]} Re4 {[%clk 00:02:18]}
{[%emt 00:00:32]} 39. Ke2 {[%clk 00:01:10]} {[%emt 00:00:19]} g6 {[%clk
00:02:19]} {[%emt 00:00:03]} 40. Kd3 {[%clk 00:01:12]} {[%emt 00:00:03]} Rb7
{[%clk 00:02:11]} {[%emt 00:00:12]} 41. Rg1 {[%clk 00:00:57]} {[%emt 00:00:20]}
b5 {[%clk 00:02:11]} {[%emt 00:00:06]} 42. axb5 {[%clk 00:00:28]} {[%emt
00:00:34]} Nxb5 {[%clk 00:02:13]} {[%emt 00:00:02]} 43. Bc5 {[%clk 00:00:26]}
{[%emt 00:00:07]} Nc7 {[%clk 00:02:03]} {[%emt 00:00:16]} 44. Rc3 {[%clk
00:00:12]} {[%emt 00:00:19]} Na6 {[%clk 00:02:00]} {[%emt 00:00:08]} 45. Rb1
{[%clk 00:00:10]} {[%emt 00:00:08]} Re8 {[%clk 00:02:02]} {[%emt 00:00:02]} 46.
Kc2 {[%clk 00:00:10]} {[%emt 00:00:05]} Rb5 {[%clk 00:01:54]} {[%emt 00:00:12]}
47. Ba3 {[%clk 00:00:11]} {[%emt 00:00:05]} Reb8 {[%clk 00:01:55]} {[%emt
00:00:03]} 48. Rb2 {[%clk 00:00:08]} {[%emt 00:00:09]} R8b7 {[%clk 00:01:42]}
{[%emt 00:00:18]} 49. Kc1 {[%clk 00:00:12]} {[%emt 00:00:01]} Nc7 {[%clk
00:01:36]} {[%emt 00:00:11]} 50. Bf8 {[%clk 00:00:09]} {[%emt 00:00:07]} Ne8
{[%clk 00:01:35]} {[%emt 00:00:05]} 51. Ba3 {[%clk 00:00:10]} {[%emt 00:00:05]}
Nf6 {[%clk 00:01:38]} {[%emt 00:00:02]} 52. f3 {[%clk 00:00:13]} {[%emt
00:00:03]} Ne8 {[%clk 00:01:22]} {[%emt 00:00:19]} 53. Kb1 {[%clk 00:00:11]}
{[%emt 00:00:08]} Nc7 {[%clk 00:01:23]} {[%emt 00:00:04]} 54. Ka2 {[%clk
00:00:10]} {[%emt 00:00:06]} R5b6 {[%clk 00:01:24]} {[%emt 00:00:03]} 55. Rbc2
{[%emt 00:00:10]} Ra6 {[%clk 00:01:23]} {[%emt 00:00:05]} 56. Rc5 {[%clk
00:00:10]} {[%emt 00:00:02]} Nb5 {[%clk 00:01:16]} {[%emt 00:00:12]} 57. Bb2
{[%clk 00:00:14]} {[%emt 00:00:01]} a4 {[%clk 00:01:18]} {[%emt 00:00:03]} 58.
b4 {[%clk 00:00:17]} {[%emt 00:00:02]} a3 {[%clk 00:01:18]} {[%emt 00:00:05]}
59. Bc1 {[%clk 00:00:17]} {[%emt 00:00:05]} Nd6 {[%clk 00:01:18]} {[%emt
00:00:04]} 60. Bd2 {[%clk 00:00:16]} {[%emt 00:00:06]} Nc4 {[%clk 00:00:59]}
{[%emt 00:00:24]} 61. e4 {[%clk 00:00:08]} {[%emt 00:00:13]} fxe4 {[%clk
00:00:47]} {[%emt 00:00:17]} 62. fxe4 {[%clk 00:00:12]} {[%emt 00:00:01]} Nxd2
63. Rxd2 {[%clk 00:00:17]} dxe4 {[%clk 00:00:44]} {[%emt 00:00:01]} 64. Re5
{[%clk 00:00:10]} {[%emt 00:00:11]} Rxb4 {[%clk 00:00:35]} {[%emt 00:00:14]} 65.
Rxe4 {[%clk 00:00:14]} Rab6 {[%clk 00:00:36]} {[%emt 00:00:05]} 66. Kxa3 {[%clk
00:00:09]} {[%emt 00:00:10]} Rb3+ {[%clk 00:00:26]} {[%emt 00:00:15]} 67. Ka2
{[%clk 00:00:14]} {[%emt 00:00:01]} Rxg3 {[%clk 00:00:28]} {[%emt 00:00:02]} 68.
Rde2 {[%clk 00:00:10]} {[%emt 00:00:09]} Kd6 {[%clk 00:00:21]} {[%emt
00:00:12]} 69. Re5 {[%clk 00:00:07]} {[%emt 00:00:08]} Rb4 {[%clk 00:00:19]}
{[%emt 00:00:06]} 70. Re6+ {[%clk 00:00:10]} {[%emt 00:00:03]} Kd5 {[%clk
00:00:21]} {[%emt 00:00:02]} 71. R2e5+ {[%clk 00:00:12]} {[%emt 00:00:04]} Kxd4
{[%clk 00:00:16]} {[%emt 00:00:10]} 72. Re4+ {[%clk 00:00:16]} Kc5 {[%clk
00:00:20]} 73. R6e5+ {[%clk 00:00:18]} {[%emt 00:00:04]} Kd6 {[%clk 00:00:18]}
{[%emt 00:00:07]} 74. Re6+ {[%clk 00:00:22]} {[%emt 00:00:01]} Kd5 {[%clk
00:00:12]} {[%emt 00:00:10]} 75. R6e5+ {[%clk 00:00:26]} {[%emt 00:00:01]} Kd6
{[%emt 00:00:03]} 76. Re6+ Kd5 {[%clk 00:00:16]} {[%emt 00:00:03]} 77. R6e5+
{[%clk 00:00:34]} 1/2-1/2

[Event "Elite Hotels Open 2024"]
[Site "Elite Stadshotellet, Kungsgatan 6, Vaxjo, Sweden"]
[Date "2024.02.09"]
[Round "3.10"]
[White "Ostlund, Joar"]
[Black "Evertsson, Lennart"]
[Result "1-0"]
[TimeControl "15 minutes + 5 seconds per move from move one (Round 1 - 4) / 90 minutes + 30 seconds per move from move one (Round 5 - 8)"]
[WhiteTitle "FM"]
[WhiteFideId "1735020"]
[BlackFideId "1705156"]
[WhiteElo "2327"]
[BlackElo "2062"]

1. d4 {[%clk 00:15:08]} {[%emt 00:00:02]} Nf6 {[%clk 00:15:05]} {[%emt
00:00:05]} 2. c4 {[%clk 00:15:11]} {[%emt 00:00:02]} e6 {[%clk 00:15:01]}
{[%emt 00:00:09]} 3. Nf3 {[%clk 00:15:12]} {[%emt 00:00:03]} c5 {[%clk
00:14:57]} {[%emt 00:00:09]} 4. d5 {[%clk 00:15:13]} {[%emt 00:00:04]} b5
{[%clk 00:14:49]} {[%emt 00:00:13]} 5. e4 {[%clk 00:14:04]} {[%emt 00:01:15]}
Nxe4 {[%clk 00:14:11]} {[%emt 00:00:43]} 6. Bd3 {[%clk 00:14:06]} {[%emt
00:00:02]} Nf6 {[%clk 00:13:57]} {[%emt 00:00:19]} 7. Nc3 {[%clk 00:13:36]}
{[%emt 00:00:35]} Bb7 {[%clk 00:12:06]} {[%emt 00:01:57]} 8. O-O {[%clk
00:12:54]} {[%emt 00:00:47]} Be7 {[%clk 00:10:31]} {[%emt 00:01:40]} 9. Bf4
{[%clk 00:10:21]} {[%emt 00:02:39]} b4 {[%clk 00:09:17]} {[%emt 00:01:19]} 10.
Nb5 {[%clk 00:07:20]} {[%emt 00:03:06]} d6 {[%clk 00:08:06]} {[%emt 00:01:15]}
11. dxe6 {[%clk 00:07:09]} {[%emt 00:00:16]} fxe6 {[%clk 00:08:06]} {[%emt
00:00:04]} 12. Ng5 {[%clk 00:06:57]} {[%emt 00:00:18]} e5 {[%clk 00:05:47]}
{[%emt 00:02:23]} 13. Ne6 {[%clk 00:06:32]} {[%emt 00:00:31]} Qd7 {[%clk
00:05:39]} {[%emt 00:00:13]} 14. Nbc7+ {[%clk 00:02:15]} {[%emt 00:04:23]} Kf7
{[%clk 00:05:33]} {[%emt 00:00:10]} 15. Bg5 {[%clk 00:01:23]} {[%emt 00:00:58]}
Nc6 {[%clk 00:04:50]} {[%emt 00:00:48]} 16. Bf5 {[%clk 00:00:08]} {[%emt
00:01:21]} g6 {[%clk 00:04:33]} {[%emt 00:00:21]} 17. Bxf6 {[%clk 00:00:09]}
{[%emt 00:00:03]} Kxf6 {[%clk 00:03:29]} {[%emt 00:01:09]} 18. Nd5+ {[%clk
00:00:13]} {[%emt 00:00:02]} Kxf5 {[%clk 00:03:17]} {[%emt 00:00:17]} 19. Ng7+
{[%clk 00:00:08]} {[%emt 00:00:10]} Kg5 {[%clk 00:03:08]} {[%emt 00:00:14]} 20.
Qd2+ {[%clk 00:00:12]} {[%emt 00:00:02]} Kh4 {[%clk 00:02:20]} {[%emt
00:00:53]} 21. Qh6+ {[%clk 00:00:14]} {[%emt 00:00:02]} 1-0

[Event "Elite Hotels Open 2024"]
[Site "Elite Stadshotellet, Kungsgatan 6, Vaxjo, Sweden"]
[Date "2024.02.09"]
[Round "3.11"]
[White "Bjorkman, Filip"]
[Black "Kistrup, Nicolai"]
[Result "1-0"]
[TimeControl "15 minutes + 5 seconds per move from move one (Round 1 - 4) / 90 minutes + 30 seconds per move from move one (Round 5 - 8)"]
[BlackTitle "FM"]
[WhiteFideId "1734970"]
[BlackFideId "1444816"]
[WhiteElo "2046"]
[BlackElo "2326"]

1. e4 {[%clk 00:15:07]} {[%emt 00:00:02]} e5 {[%clk 00:15:08]} {[%emt
00:00:02]} 2. Nf3 {[%clk 00:15:11]} {[%emt 00:00:02]} Nc6 {[%clk 00:15:12]}
{[%emt 00:00:02]} 3. Bc4 {[%clk 00:15:14]} {[%emt 00:00:01]} Nf6 {[%clk
00:15:15]} {[%emt 00:00:02]} 4. Ng5 {[%clk 00:15:16]} {[%emt 00:00:02]} d5
{[%clk 00:15:19]} {[%emt 00:00:02]} 5. exd5 {[%clk 00:15:20]} {[%emt 00:00:02]}
Na5 {[%clk 00:15:23]} {[%emt 00:00:01]} 6. Bb5+ {[%clk 00:15:23]} {[%emt
00:00:02]} c6 {[%clk 00:15:27]} {[%emt 00:00:01]} 7. dxc6 {[%clk 00:15:26]}
{[%emt 00:00:02]} bxc6 {[%clk 00:15:30]} {[%emt 00:00:01]} 8. Bd3 {[%clk
00:15:30]} {[%emt 00:00:02]} Nd5 {[%clk 00:15:09]} {[%emt 00:00:26]} 9. Nf3
{[%clk 00:15:31]} {[%emt 00:00:03]} Bd6 {[%clk 00:15:12]} {[%emt 00:00:03]} 10.
O-O {[%clk 00:15:28]} {[%emt 00:00:08]} f5 {[%clk 00:14:46]} {[%emt 00:00:32]}
11. Nxe5 {[%clk 00:14:00]} {[%emt 00:01:32]} Bxe5 {[%clk 00:13:35]} {[%emt
00:01:15]} 12. Re1 {[%clk 00:14:02]} {[%emt 00:00:04]} Qe7 {[%clk 00:13:14]}
{[%emt 00:00:26]} 13. Bxf5 {[%clk 00:11:44]} {[%emt 00:02:23]} O-O {[%clk
00:11:19]} {[%emt 00:02:01]} 14. Bxh7+ {[%clk 00:09:28]} {[%emt 00:02:21]} Kxh7
{[%clk 00:10:13]} {[%emt 00:01:10]} 15. Qh5+ {[%clk 00:09:31]} {[%emt
00:00:02]} Kg8 {[%clk 00:10:16]} {[%emt 00:00:01]} 16. Qxe5 {[%clk 00:09:27]}
{[%emt 00:00:11]} Qxe5 {[%clk 00:09:56]} {[%emt 00:00:25]} 17. Rxe5 {[%clk
00:09:30]} {[%emt 00:00:01]} Nc4 {[%clk 00:09:50]} {[%emt 00:00:12]} 18. Re2
{[%clk 00:08:30]} {[%emt 00:01:05]} Nf4 {[%clk 00:08:42]} {[%emt 00:01:13]} 19.
Re1 {[%clk 00:08:20]} {[%emt 00:00:14]} Bg4 {[%clk 00:06:34]} {[%emt 00:02:14]}
20. d3 {[%clk 00:06:13]} {[%emt 00:02:12]} Rae8 {[%clk 00:05:56]} {[%emt
00:00:43]} 21. Be3 {[%clk 00:06:04]} {[%emt 00:00:13]} Ne2+ {[%clk 00:04:51]}
{[%emt 00:01:11]} 22. Kh1 {[%clk 00:06:03]} {[%emt 00:00:06]} Nxe3 {[%clk
00:04:07]} {[%emt 00:00:49]} 23. fxe3 {[%clk 00:06:07]} {[%emt 00:00:01]} Rxe3
{[%clk 00:03:46]} {[%emt 00:00:26]} 24. Nc3 {[%clk 00:06:04]} {[%emt 00:00:08]}
Rf2 {[%clk 00:03:18]} {[%emt 00:00:32]} 25. Ne4 {[%clk 00:05:56]} {[%emt
00:00:12]} Rf4 {[%clk 00:02:49]} {[%emt 00:00:34]} 26. Nc3 {[%clk 00:05:50]}
{[%emt 00:00:12]} Rf2 {[%clk 00:02:46]} {[%emt 00:00:08]} 27. Ne4 {[%clk
00:05:39]} {[%emt 00:00:15]} Rf5 {[%clk 00:02:48]} {[%emt 00:00:03]} 28. h3
{[%clk 00:04:33]} {[%emt 00:01:11]} Rh5 {[%clk 00:02:34]} {[%emt 00:00:19]} 29.
Nf2 {[%clk 00:04:11]} {[%emt 00:00:26]} Bd7 {[%clk 00:02:33]} {[%emt 00:00:07]}
30. Kh2 {[%clk 00:02:32]} {[%emt 00:01:45]} g5 {[%clk 00:02:32]} {[%emt
00:00:05]} 31. Ne4 {[%clk 00:01:31]} {[%emt 00:01:05]} Kg7 {[%clk 00:01:31]}
{[%emt 00:01:06]} 32. Ng3 {[%clk 00:01:34]} {[%emt 00:00:02]} Nxg3 {[%clk
00:00:17]} {[%emt 00:01:19]} 33. Rxe3 {[%clk 00:01:37]} {[%emt 00:00:03]} Nf5
{[%clk 00:00:20]} {[%emt 00:00:02]} 34. Re4 {[%clk 00:01:08]} {[%emt 00:00:34]}
Rh8 {[%clk 00:00:22]} {[%emt 00:00:03]} 35. g4 {[%clk 00:01:07]} {[%emt
00:00:06]} Nh4 {[%clk 00:00:17]} {[%emt 00:00:09]} 36. Re7+ {[%clk 00:01:10]}
{[%emt 00:00:03]} Kf6 {[%clk 00:00:21]} {[%emt 00:00:02]} 37. Rxd7 {[%clk
00:01:14]} {[%emt 00:00:02]} Ke5 {[%clk 00:00:14]} {[%emt 00:00:12]} 38. Re1+
{[%clk 00:01:15]} {[%emt 00:00:03]} Kf6 {[%clk 00:00:10]} {[%emt 00:00:10]} 39.
Kg3 {[%clk 00:01:15]} {[%emt 00:00:05]} Ng6 {[%clk 00:00:12]} {[%emt 00:00:03]}
40. Rd6+ {[%clk 00:01:18]} {[%emt 00:00:01]} Kf7 {[%clk 00:00:12]} {[%emt
00:00:05]} 41. Rf1+ {[%clk 00:00:58]} {[%emt 00:00:25]} Nf4 {[%clk 00:00:15]}
{[%emt 00:00:02]} 42. h4 {[%clk 00:00:55]} {[%emt 00:00:08]} Ke7 {[%clk
00:00:15]} {[%emt 00:00:04]} 43. Rxc6 {[%clk 00:00:41]} {[%emt 00:00:19]} gxh4+
{[%clk 00:00:19]} {[%emt 00:00:02]} 44. Kh2 {[%clk 00:00:42]} {[%emt 00:00:04]}
Nd5 {[%clk 00:00:18]} {[%emt 00:00:07]} 45. Rc5 {[%clk 00:00:33]} {[%emt
00:00:13]} Kd6 {[%clk 00:00:19]} {[%emt 00:00:04]} 46. d4 {[%clk 00:00:24]}
{[%emt 00:00:14]} Ne3 {[%clk 00:00:19]} {[%emt 00:00:06]} 47. Rf6+ {[%clk
00:00:24]} {[%emt 00:00:04]} Ke7 {[%clk 00:00:23]} {[%emt 00:00:02]} 48. Rf4
{[%clk 00:00:24]} {[%emt 00:00:04]} Kd6 {[%clk 00:00:18]} {[%emt 00:00:10]} 49.
Re4 {[%clk 00:00:23]} {[%emt 00:00:07]} Nd5 {[%clk 00:00:13]} {[%emt 00:00:11]}
50. c4 {[%clk 00:00:19]} {[%emt 00:00:08]} Nf6 {[%clk 00:00:14]} {[%emt
00:00:03]} 51. Rf4 {[%clk 00:00:21]} {[%emt 00:00:04]} Nd7 {[%clk 00:00:12]}
{[%emt 00:00:08]} 52. Rd5+ {[%clk 00:00:24]} {[%emt 00:00:02]} Kc6 {[%clk
00:00:13]} {[%emt 00:00:03]} 53. b4 {[%clk 00:00:22]} {[%emt 00:00:07]} Re8
{[%clk 00:00:12]} {[%emt 00:00:06]} 54. b5+ {[%clk 00:00:24]} {[%emt 00:00:03]}
Kc7 {[%clk 00:00:16]} {[%emt 00:00:01]} 55. Rf7 {[%clk 00:00:28]} {[%emt
00:00:01]} 1-0

[Event "Elite Hotels Open 2024"]
[Site "Elite Stadshotellet, Kungsgatan 6, Vaxjo, Sweden"]
[Date "2024.02.09"]
[Round "3.12"]
[White "Kristensen, Kaare Hove"]
[Black "Karlsson, Jorgen"]
[Result "1/2-1/2"]
[TimeControl "15 minutes + 5 seconds per move from move one (Round 1 - 4) / 90 minutes + 30 seconds per move from move one (Round 5 - 8)"]
[WhiteTitle "IM"]
[WhiteFideId "1400940"]
[BlackFideId "1711679"]
[WhiteElo "2324"]
[BlackElo "2056"]

1. e4 {[%clk 00:15:07]} {[%emt 00:00:02]} g6 {[%clk 00:15:07]} {[%emt
00:00:04]} 2. d4 {[%clk 00:15:08]} {[%emt 00:00:03]} Bg7 {[%clk 00:15:11]}
{[%emt 00:00:02]} 3. c4 {[%clk 00:15:10]} {[%emt 00:00:03]} d6 {[%clk
00:15:15]} {[%emt 00:00:02]} 4. Nc3 {[%clk 00:15:11]} {[%emt 00:00:03]} e5
{[%clk 00:15:18]} {[%emt 00:00:02]} 5. Be3 {[%clk 00:14:32]} {[%emt 00:00:43]}
Nd7 {[%clk 00:14:59]} {[%emt 00:00:25]} 6. Nf3 {[%clk 00:14:00]} {[%emt
00:00:38]} Ngf6 {[%clk 00:14:16]} {[%emt 00:00:47]} 7. Be2 {[%clk 00:13:50]}
{[%emt 00:00:14]} O-O {[%clk 00:14:18]} {[%emt 00:00:04]} 8. O-O {[%clk
00:13:49]} {[%emt 00:00:06]} Ng4 {[%clk 00:13:54]} {[%emt 00:00:29]} 9. Bg5
{[%clk 00:13:30]} {[%emt 00:00:24]} f6 {[%clk 00:13:29]} {[%emt 00:00:30]} 10.
Bc1 {[%clk 00:13:30]} {[%emt 00:00:04]} h5 {[%clk 00:13:25]} {[%emt 00:00:10]}
11. h3 {[%clk 00:13:05]} {[%emt 00:00:30]} Nh6 {[%clk 00:13:26]} {[%emt
00:00:04]} 12. Be3 {[%clk 00:12:59]} {[%emt 00:00:11]} Re8 {[%clk 00:12:41]}
{[%emt 00:00:50]} 13. Qd2 {[%clk 00:11:48]} {[%emt 00:01:16]} Nf7 {[%clk
00:12:39]} {[%emt 00:00:07]} 14. Nh4 {[%clk 00:10:33]} {[%emt 00:01:20]} Nf8
{[%clk 00:12:41]} {[%emt 00:00:03]} 15. f4 {[%clk 00:07:31]} {[%emt 00:03:06]}
f5 {[%clk 00:11:44]} {[%emt 00:01:03]} 16. Nxg6 {[%clk 00:07:17]} {[%emt
00:00:19]} Nxg6 {[%clk 00:11:46]} {[%emt 00:00:03]} 17. fxe5 {[%clk 00:06:34]}
{[%emt 00:00:49]} dxe5 {[%clk 00:11:32]} {[%emt 00:00:19]} 18. exf5 {[%clk
00:05:43]} {[%emt 00:00:56]} Nf4 {[%clk 00:11:23]} {[%emt 00:00:13]} 19. Bxf4
{[%clk 00:04:32]} {[%emt 00:01:17]} exf4 {[%clk 00:11:26]} {[%emt 00:00:02]} 20.
Rad1 {[%clk 00:04:14]} {[%emt 00:00:23]} c5 {[%clk 00:09:52]} {[%emt 00:01:39]}
21. Qxf4 {[%clk 00:02:13]} {[%emt 00:02:06]} Bxd4+ {[%clk 00:09:54]} {[%emt
00:00:03]} 22. Kh1 {[%clk 00:02:17]} Qd6 {[%clk 00:08:23]} {[%emt 00:01:36]} 23.
Bxh5 {[%clk 00:02:19]} {[%emt 00:00:03]} Qxf4 {[%clk 00:07:23]} {[%emt
00:01:05]} 24. Rxf4 {[%clk 00:02:23]} {[%emt 00:00:02]} Re5 {[%clk 00:07:02]}
{[%emt 00:00:26]} 25. Nd5 {[%clk 00:02:04]} {[%emt 00:00:23]} Nd6 {[%clk
00:06:11]} {[%emt 00:00:55]} 26. g4 {[%clk 00:01:30]} {[%emt 00:00:40]} b5
{[%clk 00:05:11]} {[%emt 00:01:05]} 27. Kh2 {[%clk 00:00:47]} {[%emt 00:00:47]}
bxc4 {[%clk 00:05:06]} {[%emt 00:00:11]} 28. Nc3 {[%clk 00:00:35]} {[%emt
00:00:17]} Rb8 {[%clk 00:05:00]} {[%emt 00:00:10]} 29. Rdxd4 {[%clk 00:00:32]}
{[%emt 00:00:07]} cxd4 30. Rxd4 {[%clk 00:00:36]} Nf7 {[%clk 00:04:41]} {[%emt
00:00:22]} 31. Ne4 {[%clk 00:00:18]} {[%emt 00:00:24]} Rxb2+ {[%clk 00:04:25]}
{[%emt 00:00:21]} 32. Kg3 {[%clk 00:00:22]} {[%emt 00:00:01]} Re7 {[%clk
00:02:29]} {[%emt 00:02:01]} 33. Rxc4 {[%clk 00:00:21]} {[%emt 00:00:05]} Ba6
{[%clk 00:02:23]} {[%emt 00:00:11]} 34. Rd4 {[%clk 00:00:17]} {[%emt 00:00:10]}
Rb8 {[%clk 00:02:04]} {[%emt 00:00:24]} 35. g5 {[%clk 00:00:16]} {[%emt
00:00:06]} Bb7 {[%clk 00:01:39]} {[%emt 00:00:30]} 36. Nf6+ {[%clk 00:00:14]}
{[%emt 00:00:07]} Kh8 {[%clk 00:01:23]} {[%emt 00:00:21]} 37. g6 {[%clk
00:00:14]} {[%emt 00:00:05]} Ne5 {[%clk 00:01:16]} {[%emt 00:00:12]} 38. Ng4
{[%clk 00:00:14]} {[%emt 00:00:05]} Nxg4 {[%clk 00:01:12]} {[%emt 00:00:09]} 39.
hxg4 {[%clk 00:00:17]} {[%emt 00:00:02]} Rf8 {[%clk 00:01:09]} {[%emt
00:00:08]} 40. Rd6 {[%clk 00:00:20]} {[%emt 00:00:03]} Kg7 {[%clk 00:01:10]}
{[%emt 00:00:03]} 41. Kf4 {[%clk 00:00:23]} {[%emt 00:00:02]} Bc8 {[%clk
00:01:03]} {[%emt 00:00:12]} 42. Kg5 {[%clk 00:00:25]} {[%emt 00:00:03]} Re5
{[%clk 00:00:57]} {[%emt 00:00:11]} 43. Rc6 {[%clk 00:00:29]} {[%emt 00:00:01]}
Bxf5 {[%clk 00:00:53]} {[%emt 00:00:10]} 44. Rc7+ {[%clk 00:00:12]} {[%emt
00:00:22]} Kg8 {[%clk 00:00:56]} {[%emt 00:00:02]} 45. g7 {[%clk 00:00:09]}
{[%emt 00:00:08]} Be6+ {[%clk 00:00:24]} {[%emt 00:00:37]} 46. Kg6 {[%clk
00:00:08]} {[%emt 00:00:06]} Bf7+ {[%clk 00:00:15]} {[%emt 00:00:14]} 47. Kf6
{[%clk 00:00:08]} {[%emt 00:00:05]} Re6+ {[%clk 00:00:19]} {[%emt 00:00:01]} 48.
Kg5 {[%clk 00:00:12]} {[%emt 00:00:01]} Kxg7 {[%clk 00:00:22]} {[%emt
00:00:02]} 49. Rxa7 {[%clk 00:00:15]} {[%emt 00:00:02]} Kg8 {[%clk 00:00:23]}
{[%emt 00:00:04]} 50. a4 {[%clk 00:00:18]} {[%emt 00:00:02]} Bxh5 {[%clk
00:00:26]} {[%emt 00:00:02]} 51. gxh5 {[%clk 00:00:20]} {[%emt 00:00:03]} Re5+
{[%clk 00:00:28]} {[%emt 00:00:02]} 52. Kg6 {[%clk 00:00:23]} {[%emt 00:00:02]}
Rfe8 {[%clk 00:00:30]} {[%emt 00:00:03]} 53. Rg7+ {[%clk 00:00:27]} {[%emt
00:00:01]} Kf8 {[%clk 00:00:31]} {[%emt 00:00:04]} 54. Rf7+ {[%emt 00:00:01]}
Kg8 55. Rg7+ {[%emt 00:00:01]} 1/2-1/2